Cogmind - Beta 13 @@@ ROGUE MODE // 2024.04.10 @ 12:08:22 Player: GwenMeow Result: Core destroyed Performance ------------- Evolutions (1) 500 Regions Visited (2) 400 Robots Destroyed (63) 315 Value Destroyed (1409) 1409 Prototype IDs (0) 0 Alien Tech Used (0) 0 Bonus (43) 43 TOTAL SCORE: 2667 Bonus ------- High Alert Combat Kills 43 Cogmind --------- Core Integrity 0/400 Matter 300/300 Energy 256/265 System Corruption 1% Temperature Critical (508) Movement Walking (190) Ox1 Location -9/Materials Parts ------- > --- POWER (1) -------- Reinforced Ion Engine > --- PROPULSION (3) --- Aluminum Leg Aluminum Leg Aluminum Leg > --- UTILITY (3) ------ Medium Storage Unit Signal Interpreter Reactive Plating > --- WEAPON (2) ------- Particle Gun Particle Cannon > --- INVENTORY (10) --- Reinforced Ion Engine Aluminum Leg Signal Interpreter Authchip [Processor] Improved Assault Rifle Improved Assault Rifle Rocket Launcher Rocket Launcher Heavy Hammer Peak State ------------ > --- POWER ------------ Reinforced Ion Engine > --- PROPULSION ------- Aluminum Leg Aluminum Leg Aluminum Leg > --- UTILITY ---------- Medium Storage Unit Signal Interpreter Reactive Plating > --- WEAPON ----------- Particle Gun Particle Cannon > --- INVENTORY -------- Reinforced Ion Engine Aluminum Leg Signal Interpreter Authchip [Processor] Improved Assault Rifle Improved Assault Rifle Rocket Launcher Rocket Launcher Heavy Hammer [Rating: 16] Favorites ----------- Power Ion Engine Engine Ion Engine Power Core Light Nuclear Core Propulsion Aluminum Leg Leg Aluminum Leg Utility Medium Storage Unit Device Sensor Array Storage Medium Storage Unit Processor Signal Interpreter Protection Hardened Light Armor Plating Weapon Light Cannon Energy Gun Particle Gun Energy Cannon Particle Cannon Ballistic Gun Heavy Assault Rifle Ballistic Cannon Light Cannon Launcher Grenade Launcher Build | -11 -10 -9 ------- Run | Yrd Mat Mat Slots Evolved 2 | . . 2 Power . | . . . Propulsion 1 | . . 1 Utility 1 | . . 1 Weapon . | . . . Parts Attached 53 | 6 20 27 Power 9 | 1 2 6 Engine 8 | 1 2 5 Core 1 | . . 1 Reactor . | . . . Propulsion 22 | 2 6 14 Treads . | . . . Leg 22 | 2 6 14 Wheel . | . . . Hover . | . . . Flight . | . . . Utility 9 | 1 5 3 Device 3 | . 2 1 Storage 2 | 1 1 . Processor 2 | . 2 . Hackware . | . . . Protection 2 | . . 2 Artifact . | . . . Weapon 13 | 2 7 4 Energy Gun 4 | 2 1 1 Energy Cannon 1 | . . 1 Ballistic Gun 2 | . . 2 Ballistic Cannon 5 | . 5 . Launcher 1 | . 1 . Special Weapon . | . . . Impact Weapon . | . . . Slashing Weapon . | . . . Piercing Weapon . | . . . Special Melee Weapon . | . . . Unidentified Prototypes . | . . . Parts Lost 1 | . . 1 Power . | . . . Propulsion 1 | . . 1 Utility . | . . . Weapon . | . . . Highest Loss Streak 1 | . . 1 To Critical Strikes . | . . . Average Slot Usage (%) 98 | . 97 99 Engine 12 | . 14 9 Leg 29 | . 27 32 Device 4 | . 2 8 Storage 12 | . 14 11 Processor 9 | . 9 11 Protection 1 | . . 2 Energy Gun 8 | . 10 5 Energy Cannon 3 | . . 9 Ballistic Gun 1 | . . 4 Ballistic Cannon 10 | . 15 1 Launcher 1 | . 2 . Naked Turns . | . . . Heaviest Build 37 | 13 22 37 Greatest Support 30 | 20 20 30 Greatest Overweight (x) 2 | . 2 1 Average Overweight (x) . | . . . Largest Inventory Capacity 10 | 8 10 10 Average Capacity 9 | 7 9 10 Most Carried 10 | 4 9 10 Average Carried 6 | 1 5 7 Final Capacity 10 | 8 10 10 Final Carried 9 | 1 6 9 Class Distribution -------------------- 85% | Scavenger-Mutant 14% | Mutant Dominant Class ---------------- Scavenger-Mutant | -10/Materials Scavenger-Mutant | -9/Materials Resources | -11 -10 -9 ----------- Run | Yrd Mat Mat Matter Collected 1320 | 233 528 559 Remotely . | . . . Salvage Created 1929 | . 524 1405 Parts 125 | . 45 80 Haulers Intercepted 6 | . 2 4 Recyclers Shooed 3 | . . 3 Parts Field Recycled . | . . . Retrieved Matter . | . . . Parts Self-Destructed . | . . . Prevented . | . . . Kills | -11 -10 -9 ------- Run | Yrd Mat Mat Combat Hostiles Destroyed 40 | . 12 28 Guns 19 | . 3 16 Cannons 21 | . 9 12 Classes Destroyed 11 | . 9 2 Worker 3 | . 2 1 Builder 1 | . 1 . Tunneler 1 | . 1 . Hauler 6 | . 2 4 Recycler 4 | . . 4 Mechanic 1 | . 1 . Operator 3 | . 2 1 Watcher 4 | . 3 1 Swarmer 13 | . 3 10 Grunt 21 | . 9 12 Sentry 6 | . . 6 Best Kill Streak 4 | . 4 4 Combat Bots Only 4 | . 3 4 Max Kills in Single Turn 2 | . 2 1 Gunslinging . | . . . Exploded . | . . . Melee . | . . . Uniques/NPCs Destroyed . | . . . Combat | -11 -10 -9 -------- Run | Yrd Mat Mat Hostile Shots Fired 199 | . 54 145 Missed 56 | . 17 39 Damage Taken 1867 | . 511 1356 Core 561 | . 155 406 Absorbed by Shields . | . . . Ignored by Resistances 39 | . . 39 Regen/Repaired (Parts) 76 | . . 76 Core Remaining (%) 69 | 100 38 . Volleys Fired 136 | . 55 81 Largest 2 | . 2 2 Hottest 133 | . 100 133 Shots Fired 271 | . 109 162 Gun 115 | . 34 81 Cannon 155 | . 74 81 Launcher 1 | . 1 . Special . | . . . Kinetic 133 | . 74 59 Thermal 137 | . 34 103 Explosive 1 | . 1 . Electromagnetic . | . . . Robot Hit Streak 10 | . 6 10 Robot Miss Streak 3 | . 3 3 Penetration Max . | . . . Secondary Targets . | . . . Shots Hit Robots 145 | . 54 91 Core Hits 75 | . 28 47 Critical Kills . | . . . Critical Parts Destroyed 1 | . . 1 Critical Strikes 4 | . 1 3 Burn 2 | . 1 1 Destroy 1 | . . 1 Blast 1 | . . 1 Melee Attacks . | . . . Impact . | . . . Slashing . | . . . Piercing . | . . . Sneak Attacks . | . . . Combat Hostiles . | . . . Follow-up Attacks . | . . . Damage Inflicted 2775 | . 1051 1724 Guns 1101 | . 355 746 Cannons 1599 | . 660 939 Explosions 74 | . 35 39 Melee . | . . . Ramming 1 | . 1 . Kinetic 1293 | . 660 633 Thermal 1407 | . 355 1052 Explosive 74 | . 35 39 Electromagnetic . | . . . Impact . | . . . Slashing . | . . . Piercing . | . . . Highest Corruption 1 | . . 1 Average Corruption 1 | . . 1 Corruption Purged . | . . . Corruption Blocked . | . . . Effects 2 | . . 2 Energy Discharges 1 | . . 1 Data Loss (minor) 1 | . . 1 Overload Shots . | . . . Overflow Damage 16 | . 5 11 Projectiles 11 | . . 11 Explosions 5 | . 5 . Melee . | . . . Knockbacks 2 | . 2 . Impact . | . . . Kinetic 2 | . 2 . Secondary . | . . . Self-Inflicted Damage 54 | . 30 24 Shots 2 | . 1 1 Rammed . | . . . Targets Rammed 1 | . 1 . Kicked 1 | . 1 . Crushed . | . . . Highest Temperature 591 | . 407 591 Average Temperature 131 | . 83 157 Received Heat Transfer 564 | . 246 318 Effects 21 | . 1 20 Shutdowns 1 | . . 1 Energy Bleed 1 | . . 1 Matter Decay 2 | . . 2 Short Circuit 1 | . 1 . Damage (minor) 2 | . . 2 Damage (major) 11 | . . 11 Damage (core) 3 | . . 3 Siege Activations . | . . . Robots Corrupted . | . . . Combat Hostiles . | . . . Parts Fried . | . . . Impact Corruptions . | . . . Robots Melted . | . . . Combat Hostiles . | . . . Parts Melted 6 | . . 6 Heat Transferred 3108 | . 925 2183 Parts Sabotaged . | . . . Parts Stolen . | . . . Parts Stripped . | . . . Power Chain Reactions . | . . . Alert | -11 -10 -9 ------- Run | Yrd Mat Mat Peak Influence 634 | . 250 634 Initial 16 | . . 16 Average 135 | . 58 265 Maximum Alert Level 2 | . 1 2 Low Security (%) 72 | 100 96 33 Level 1 15 | . 3 36 Level 2 11 | . . 29 Level 3 . | . . . Level 4 . | . . . Level 5 . | . . . High Security . | . . . Max Security . | . . . Squads Dispatched 7 | . 2 5 Investigation 2 | . . 2 Extermination . | . . . Reinforcement 5 | . 2 3 Assault . | . . . Garrison . | . . . Intercept . | . . . Searches Triggered . | . . . Construction Impeded . | . . . Haulers Reinforced . | . . . Active Scanning Responses . | . . . Cargo Convoy Interrupts . | . . . Stealth | -11 -10 -9 --------- Run | Yrd Mat Mat Distress Signals 6 | . 1 5 Communications Jammed . | . . . Distress Signals . | . . . Times Spotted 72 | . 21 51 Peak Tracking Total 6 | . 4 6 Tactical Retreats 1 | . . 1 Traps | -11 -10 -9 ------- Run | Yrd Mat Mat Traps Triggered 5 | . 3 2 Indirectly . | . . . Trap Hack Attempts . | . . . Triggered . | . . . Disarmed . | . . . Reprogrammed . | . . . Reused . | . . . Traps Extracted . | . . . Installed . | . . . Triggered . | . . . Machines | -11 -10 -9 ---------- Run | Yrd Mat Mat Machines Disabled 8 | . 4 4 Max in Single Turn 2 | . 2 2 Machines Repaired . | . . . Machines Dismantled . | . . . Machines Sabotaged . | . . . Overloaded Fab Kills . | . . . Hacking | -11 -10 -9 --------- Run | Yrd Mat Mat Machines Accessed 15 | . 9 6 Terminals 9 | . 6 3 Fabricators . | . . . Repair Stations 2 | . 1 1 Recycling Units 4 | . 2 2 Scanalyzers . | . . . Garrison Access . | . . . Total Hacks 39 | . 24 15 Successful 24 | . 13 11 Failed 15 | . 11 4 Catastrophic 4 | . 2 2 Database Lockouts . | . . . Manual 8 | . 7 1 Terminals 26 | . 18 8 Fabricators . | . . . Repair Stations 6 | . 2 4 Recycling Units 7 | . 4 3 Scanalyzers . | . . . Garrison Access . | . . . Terminal Hacks 14 | . 9 5 Record 4 | . . 4 Alert Level 5 | . 5 . Locate Traps 3 | . 2 1 Maintenance Status 1 | . 1 . Hauler Manifests 1 | . 1 . Fabricator Hacks . | . . . Repair Station Hacks 4 | . 1 3 Scan Component 3 | . 1 2 Repair 1 | . . 1 Recycling Unit Hacks 6 | . 3 3 Report Inventory 4 | . 2 2 Retrieve Components 2 | . 1 1 Scanalyzer . | . . . Garrison Access Hacks . | . . . Unauthorized Hacks . | . . . Terminals . | . . . Fabricators . | . . . Repair Stations . | . . . Recycling Units . | . . . Scanalyzers . | . . . Garrison Access . | . . . Data Cores Recovered . | . . . Used . | . . . Hacking Detections 9 | . 5 4 Full Trace Events 3 | . 1 2 Feedback Events . | . . . Feedback Blocked . | . . . Robot Schematics Acquired . | . . . Robots Built . | . . . Authchips . | . . . Time . | . . . Total Robot Build Rating . | . . . Part Schematics Acquired . | . . . Parts Built . | . . . Authchips . | . . . Time . | . . . Total Part Build Rating . | . . . Parts Repaired 1 | . . 1 Time 26 | . . 26 Parts Recycled . | . . . Recycled Matter . | . . . Retrieved Matter . | . . . Retrieved Components 14 | . 4 10 Parts Scanalyzed . | . . . Part Schematics Acquired . | . . . Parts Damaged . | . . . Bothacking | -11 -10 -9 ------------ Run | Yrd Mat Mat Used RIF Installer . | . . . Robots Hacked . | . . . Non-combat . | . . . Combat . | . . . Robot Hacks Applied . | . . . Relay Couplers Released . | . . . Fabnet Peak Effective % . | . . . Robots Rewired . | . . . Allies Hacked . | . . . Hacks Repelled . | . . . Allies | -11 -10 -9 -------- Run | Yrd Mat Mat Total Allies . | . . . Largest Group . | . . . Highest-Rated Group . | . . . Highest-Rated Ally . | . . . Total Orders . | . . . Ally Attacks . | . . . Total Damage . | . . . Kills . | . . . Allies Corrupted . | . . . Allies Melted . | . . . Intel | -11 -10 -9 ------- Run | Yrd Mat Mat Robot Analysis Total . | . . . Derelict Logs Recovered . | . . . Drone Launches . | . . . Drone Recoveries . | . . . Exploration | -11 -10 -9 ------------- Run | Yrd Mat Mat Turns Passed 3822 | 47 2339 1436 Spaces Moved 1970 | 35 1176 759 Core 10 | 10 . . Treads . | . . . Legs 1960 | 25 1176 759 Wheels . | . . . Hover . | . . . Flight . | . . . Fastest Speed 50 | 50 120 120 Average Speed 159 | 100 179 131 Slowest Speed 260 | 120 260 190 Overloaded Moves . | . . . Propulsion Burnouts . | . . . Robots Hopped . | . . . Cave-ins Triggered . | . . . Exploration Rate (%) 55 | 4 97 64 Regions Visited 2 Branch Regions . Pre-discovered Areas . | . . . Known Exits Taken 1 | . 1 . Unknown Exits Taken 1 | 1 . . Scrap Searched . | . . . Spaces Dug . | . . . Terrain Destroyed 29 | . 4 25 Melee . | . . . Projectile . | . . . AOE 29 | . 4 25 Terrain Rammed . | . . . Walls Destroyed . | . . . Machines Disabled . | . . . Actions | -11 -10 -9 --------- Run | Yrd Mat Mat Total 2377 | 47 1295 1035 Wait 130 | . 14 116 Move 1968 | 34 1175 759 Hop . | . . . Pick Up 56 | 7 20 29 Fast Attach . | . . . Attach 16 | 6 5 5 Detach 1 | . . 1 Swap 37 | . 15 22 Drop 32 | . 10 22 Fire 136 | . 55 81 Melee . | . . . Ram . | . . . Kick 1 | . 1 . Crush . | . . . Escape Stasis . | . . . Rewire . | . . . Trap . | . . . Miscellaneous . | . . . Route ------- -11/Scrapyard -10/Materials (discovered 4 exits: *Mat x3 / *Min) -9/Materials (discovered 3 exits: *Mat x2 / *Min) History --------- Turn | Location | Event 27 | -11/Scrapyard | Discovered new exit (range 15) 48 | -11/Scrapyard | Entered Materials 193 | -10/Materials | Discovered new exit (range 16) 302 | -10/Materials | Build established: Mutant 470 | -10/Materials | Discovered new exit (range 6) 857 | -10/Materials | Build established: Scavenger-Mutant 969 | -10/Materials | Discovered new exit (range 12) 993 | -10/Materials | Identified exit to Materials 1261 | -10/Materials | Core integrity fell below 50% 1332 | -10/Materials | Identified exit to Mines 1989 | -10/Materials | Discovered exit to Materials (range 5) 2387 | -10/Materials | Entered another Materials area 2387 | -9/Materials | Evolved 2 slots: Propulsion x1, Utility x1 2611 | -9/Materials | Discovered new exit (range 16) 2632 | -9/Materials | Identified exit to Materials 2725 | -9/Materials | Discovered new exit (range 16) 2742 | -9/Materials | Identified exit to Mines 2825 | -9/Materials | Repaired Aluminum Leg 3253 | -9/Materials | Core integrity fell below 50% 3776 | -9/Materials | Discovered exit to Materials (range 15) 3817 | -9/Materials | Core integrity fell below 20% 3824 | -9/Materials | Core destroyed Last Messages --------------- 03760_ Dropped Grenade Launcher. 03760_ Acquired Rocket Launcher. 03764_ Acquired 30 matter. 03776_ EXIT=FOUND: MATERIALS 03776_ Triggered EMP Trap. 03776_ A bubble of electromagnetic force engulfs the area. 03776_ Purification Channel disabled. 03776_ Door malfunctions. 03786_ U-05 Engineer lays Concrete. 03787_ System corrupted: Component data lost. 03787_ U-05 Engineer repairs door. 03802_ W-16 Scout sends out distress signal. 03805_ S-10 Pest destroyed. 03815_ System corrupted: Energy discharge (-60). 03816_ Nuclear Reactor explodes. 03816_ Scanalyzer disabled. 03819_ The unstable cave ceiling collapses. 03819_ Y-45 Defender destroyed. 03824_ Overheating: Core damaged (-64). Map ----- +----------------------------------------------------+ | ??# #??????????????????????# #?????##### | | ??# #??????????????????????# #?????????? | | ??#=#??????????????????????# " ########### | | ??#[#??????????????????????# """ | | ??#%#??????????????????????# """ | | ??#!#??????????????????????#] """ | | ??#!#??????????????????????#]]%""^ ########### | | ??#%#??????????????????????# ]]"""^ #?????????? | | ###+######################## "" #?????????? | | = + """ #?????????? | | ###################### #?????????? | | #???????# %/ + % #?????????? | | " """ #???????# [/ """ # ^ #?????????? | | " """ #???????# / """ # #?????????? | | " """ #???????# """ #!!! #?????????? | | #???????# #!! ^ #?????????? | | #???????##############!! #?????????? | | #+#####????????????????????# #?????????? | | ??????????????????????????# #?????????? | | ???????????????????##??????# ^ #?????????? | | ?????????????????### ####### #?????????? | | ????????????###### # ####??????? | | ????????????? # ????? | | ???????????????## %* "# Y ????? | | ??????????????## = # ?????? | | ????????????# [@*; ###+#########?????? | | ?????????????"" * # #?????????????????? | | ?????????????"T [# < #?????????????????? | | ?????????????"" # #?????????????????? | | ????????????+ # ######?????????????????? | | ????????????# #??????????????????????? | | ????????????# ##### ####??????????????????????? | | ????????????+ ?????##??????????????????????????? | | ????????????? ???????????????????????????????????? | | ?????????????????????????????????????????????????? | | ?????????????????????????????????????????????????? | | ?????????????????????????????????????????????????? | | ?????????????????????????????????????????????????? | | ?????????????????????????????????????????????????? | | ?????????????????????????????????????????????????? | | ?????????????????????????????????????????????????? | | | | | | | | | | | | | | | | | | | +----------------------------------------------------+ Best States ------------- Heat Dissipation 35 Energy Generation 14 Energy Capacity 265 Matter Stores 300 Matter Capacity 300 Sight Range 16 Robot Scan Range 14 Terrain Scan Density 10 Armor Coverage 150 Resistance: KI 20 Evasion (%) 55 Authchip Count 1 Item Schematics ----------------- None Robot Schematics ------------------ None Fabricated ------------ Nothing Alien Tech Used ----------------- None Achievements -------------- None Challenges ------------ None Game ------ Seed CannonRemoteUnit Manual? 0 Play Time 00:37:42 Cumulative 8.3 hours Start 2024.04.10 @ 11:31:55 End 2024.04.10 @ 12:08:22 Sessions 1 Manual Loads 0 Difficulty Rogue Special Mode None Game No. 16 Rogue 16 Adventurer 0 Explorer 0 Win Type - Total 0 Types 0/0/0/0/0/0/0/0/0 Lore% 6 Gallery% 10 Achievement% 13 Wizard Run 0 Options --------- Layout 1 ASCII 0 Keyboard 0 Movement Mouse Keybinds 0 Fullscreen 1 Font 24/Smallcaps Map View 50x35 Zoom Use 0% Tactical HUD 1 Map Filters NONE Filters NONE Steam 1 RUN: b40eeeb9-a325-4783-9c9f-13784d768501